fUST/lending_fUST_20250719
["ID","MTS","AMOUNT","RATE_DAILY","PERIOD"]
[373132150,1752873035246,-500.0,0.00016503,2]
[373132152,1752873035256,-500.0,0.00016503,2]
[373132154,1752873035265,-500.0,0.00016503,2]
[373132156,1752873035276,-500.0,0.00016503,2]
[373132159,1752873035289,-500.0,0.00016503,2]
[373132161,1752873035298,-500.0,0.00016503,2]
[373132163,1752873035308,-500.0,0.00016503,2]
[373132165,1752873035318,-404.99521397,0.00016503,2]
[373132167,1752873035328,-500.0,0.00016503,2]
[373132169,1752873035337,-512.73,0.00016503,2]
[373132171,1752873035347,-1966.73,0.00016503,2]
[373132173,1752873035357,-291.83620384,0.00016503,2]
[373132175,1752873035367,-460.0,0.00016503,2]
[373132177,1752873035376,-460.0,0.00016503,2]
[373132179,1752873035385,-460.0,0.00016503,2]
[373132181,1752873035395,-460.0,0.00016503,2]
[373132183,1752873035405,-460.0,0.00016503,2]
[373132185,1752873035414,-460.0,0.00016503,2]
[373132187,1752873035424,-460.0,0.00016503,2]
[373132189,1752873035433,-460.0,0.00016503,2]
[373132191,1752873035443,-460.0,0.00016504,2]
[373132193,1752873035452,-460.0,0.00016504,2]
[373132195,1752873035462,-460.0,0.00016504,2]
[373132197,1752873035471,-416.15938491,0.00016504,2]
[373132199,1752873035483,-460.0,0.00016504,2]
[373132201,1752873035494,-460.0,0.00016504,2]
[373132203,1752873035503,-460.0,0.00016504,2]
[373132205,1752873035514,-460.0,0.00016504,2]
[373132207,1752873035525,-460.0,0.00016504,2]
[373132210,1752873035534,-460.0,0.00016504,2]
[373132212,1752873035544,-460.0,0.00016504,2]
[373132214,1752873035555,-460.0,0.00016504,2]
[373132216,1752873035565,-447.15295006,0.00016504,2]
[373132218,1752873035574,-460.0,0.00016504,2]
[373132220,1752873035583,-460.0,0.00016504,2]
[373132222,1752873035593,-460.0,0.00016504,2]
[373132224,1752873035603,-176.59133611,0.00016504,2]
[373132226,1752873035612,-460.0,0.00016504,2]
[373132228,1752873035622,-500.0,0.00016504,2]
[373132230,1752873035632,-460.0,0.00016504,2]
[373132232,1752873035642,-460.0,0.00016504,2]
[373132234,1752873035651,-460.0,0.00016504,2]
[373132236,1752873035661,-460.0,0.00016504,2]
[373132238,1752873035670,-535.76689433,0.00016504,2]
[373132240,1752873035680,-460.0,0.00016504,2]
[373132242,1752873035689,-460.0,0.00016504,2]
[373132244,1752873035698,-460.0,0.00016504,2]
[373132246,1752873035707,-460.0,0.00016504,2]
[373132248,1752873035715,-460.0,0.00016504,2]
[373132250,1752873035724,-529.86384372,0.00016504,2]
[373132252,1752873035734,-410.80514934,0.00016504,2]
[373132254,1752873035744,-460.0,0.00016504,2]
[373132256,1752873035754,-586.43,0.00016504,2]
[373132258,1752873035763,-460.0,0.00016504,2]
[373132260,1752873035773,-460.0,0.00016504,2]
[373132261,1752873035782,-460.0,0.00016504,2]
[373132263,1752873035791,-391.19811497,0.00016504,2]
[373132265,1752873035801,-460.0,0.00016504,2]
[373132267,1752873035810,-460.0,0.00016504,2]
[373132269,1752873035819,-460.0,0.00016504,2]
[373132271,1752873035829,-460.0,0.00016504,2]
[373132273,1752873035838,-460.0,0.00016504,2]
[373132275,1752873035847,-460.0,0.00016504,2]
[373132277,1752873035856,-460.0,0.00016504,2]
[373132279,1752873035865,-460.0,0.00016504,2]
[373132281,1752873035874,-460.0,0.00016504,2]
[373132283,1752873035883,-460.0,0.00016504,2]
[373132285,1752873035892,-202.86651658,0.00016504,2]
[373132287,1752873035901,-460.0,0.00016504,2]
[373132289,1752873035912,-408.32922336,0.00016504,2]
[373132291,1752873035921,-460.0,0.00016504,2]
[373132293,1752873035930,-500.0,0.00016504,2]
[373132295,1752873035939,-500.0,0.00016504,2]
[373132297,1752873035948,-460.0,0.00016504,2]
[373132299,1752873035957,-460.0,0.00016504,2]
[373132301,1752873035966,-460.0,0.00016504,2]
[373132303,1752873035976,-460.0,0.00016504,2]
[373132305,1752873035985,-460.0,0.00016504,2]
[373132307,1752873035994,-460.0,0.00016504,2]
[373132309,1752873036003,-460.0,0.00016504,2]
[373132311,1752873036013,-460.0,0.00016504,2]
[373132313,1752873036022,-172.47,0.00016504,2]
[373132315,1752873036032,-460.0,0.00016504,2]
[373132317,1752873036041,-366.31249718,0.00016505,2]
[373132319,1752873036050,-460.0,0.00016505,2]
[373132320,1752873036059,-519.10595794,0.00016505,2]
[373132323,1752873036069,-460.0,0.00016505,2]
[373132325,1752873036078,-177.54662749,0.00016505,2]
[373132326,1752873036088,-259.23235302,0.00016505,2]
[373132328,1752873036097,-460.0,0.00016505,2]
[373132330,1752873036107,-255.92615271,0.00016505,2]
[373132332,1752873036116,-183.10663025,0.00016505,2]
[373132554,1752873038150,-293.999998,0.00016503,2]
[373132567,1752873038259,-166.000002,0.00016503,2]
[373132569,1752873038269,-291.700195,0.00016505,2]
[373132571,1752873038279,-460.0,0.00016505,2]
[373132573,1752873038289,-246.86849612,0.00016505,2]
[373132576,1752873038302,-213.96739147,0.00016505,2]
[373132577,1752873038312,-460.0,0.00016505,2]
[373132579,1752873038322,-1000.0,0.00016505,2]
[373132581,1752873038331,-460.0,0.00016505,2]
[373132583,1752873038341,-460.0,0.00016505,2]
[373132584,1752873038350,-460.0,0.00016505,2]
[373132585,1752873038360,-460.0,0.00016505,2]
[373132586,1752873038370,-460.0,0.00016505,2]
[373132587,1752873038380,-460.0,0.00016505,2]
[373132588,1752873038389,-82.91257805,0.00016505,2]
[373132589,1752873038401,-377.08742195,0.00016505,2]
[373132590,1752873038413,-460.0,0.00016505,2]
[373132591,1752873038423,-370.6128793,0.00016505,2]
[373132592,1752873038432,-460.0,0.00016505,2]
[373132593,1752873038442,-460.0,0.00016505,2]
[373132594,1752873038451,-460.0,0.00016505,2]
[373132595,1752873038461,-460.0,0.00016505,2]
[373132596,1752873038471,-500.0,0.00016505,2]
[373132597,1752873038483,-460.0,0.00016505,2]
[373132598,1752873038492,-460.0,0.00016505,2]
[373132599,1752873038502,-460.0,0.00016505,2]
[373132600,1752873038512,-460.0,0.00016505,2]
[373132601,1752873038522,-460.0,0.00016505,2]
[373132602,1752873038531,-460.0,0.00016505,2]
[373132603,1752873038541,-460.0,0.00016505,2]
[373132604,1752873038551,-500.0,0.00016505,2]
[373132605,1752873038560,-460.0,0.00016505,2]
[373132606,1752873038570,-460.0,0.00016505,2]
[373132607,1752873038579,-460.0,0.00016505,2]
[373132608,1752873038589,-269.56992505,0.00016506,2]
[373132609,1752873038598,-460.0,0.00016506,2]
[373132610,1752873038607,-460.55100405,0.00016506,2]
[373132611,1752873038617,-460.0,0.00016506,2]
[373132612,1752873038626,-341.2708333,0.00016506,2]
[373132613,1752873038635,-460.0,0.00016506,2]
[373132614,1752873038645,-488.01963404,0.00016506,2]
[373132615,1752873038654,-503.74129179,0.00016506,2]
[373132616,1752873038663,-460.0,0.00016506,2]
[373132617,1752873038673,-460.0,0.00016506,2]
[373132618,1752873038683,-187.03437889,0.00016506,2]
[373132619,1752873038695,-272.96562111,0.00016506,2]
[373132620,1752873038705,-460.0,0.00016506,2]
[373132621,1752873038714,-460.0,0.00016506,2]
[373132622,1752873038723,-1050.32,0.00016506,2]
[373132623,1752873038733,-460.0,0.00016507,2]
[373132624,1752873038743,-61.90048144,0.00016507,2]
[373132625,1752873038755,-398.60206196,0.00016507,2]
[373132626,1752873038765,-460.0,0.00016507,2]
[373132627,1752873038774,-460.0,0.00016507,2]
[373132628,1752873038784,-460.0,0.00016507,2]
[373132629,1752873038794,-500.0,0.00016507,2]
[373132630,1752873038804,-460.0,0.00016507,2]
[373132631,1752873038813,-418.82336844,0.00016507,2]
[373132632,1752873038825,-41.17663156,0.00016507,2]
[373132633,1752873038834,-460.0,0.00016507,2]
[373132634,1752873038844,-709.61,0.00016508,2]
[373132635,1752873038854,-285.15736048,0.00016508,2]
[373132636,1752873038863,-460.0,0.00016508,2]
[373132637,1752873038872,-460.0,0.00016508,2]
[373132638,1752873038882,-460.0,0.00016508,2]
[373132639,1752873038892,-460.0,0.00016508,2]
[373132640,1752873038902,-939.48,0.00016508,2]
[373132641,1752873038912,-965.92,0.00016508,2]
[373132642,1752873038922,-500.0,0.00016573,2]
[373132643,1752873038931,-500.0,0.00016679,2]
[373132644,1752873038941,-235.0,0.00016679,2]
[373132645,1752873038951,-476.24671994,0.00016682,2]
[373132646,1752873038960,-18966.40396742,0.00016682,2]
[373132647,1752873038969,-150.0,0.00016684,2]
[373132648,1752873038979,-460.0,0.00016776,2]
[373132649,1752873038989,-460.0,0.00016776,2]
[373132650,1752873038999,-460.0,0.00016776,2]
[373132651,1752873039009,-460.0,0.00016776,2]
[373132652,1752873039019,-518.46,0.00016776,2]
[373132653,1752873039028,-460.0,0.00016777,2]
[373132654,1752873039038,-940.04,0.00016777,2]
[373132655,1752873039049,-460.0,0.00016777,2]
[373132656,1752873039059,-460.0,0.00016777,2]
[373132657,1752873039069,-460.0,0.00016777,2]
[373132658,1752873039079,-460.0,0.00016777,2]
[373132659,1752873039088,-460.0,0.00016777,2]
[373132660,1752873039098,-711.59,0.00016777,2]
[373132661,1752873039107,-460.0,0.00016777,2]
[373132662,1752873039117,-460.0,0.00016777,2]
[373132663,1752873039126,-512.73,0.00016777,2]
[373132664,1752873039243,-482.02399092,0.00016777,2]
[373132671,1752873040375,-463.49354728,0.00016777,2]
[373132672,1752873040387,-1021.2124618,0.00016777,2]
[373132673,1752873040396,-460.0,0.00016777,2]
[373132674,1752873040409,-460.0,0.00016777,2]
[373132675,1752873040419,-460.0,0.00016777,2]
[373132676,1752873040429,-460.0,0.00016777,2]
[373132677,1752873040439,-460.0,0.00016777,2]
[373132678,1752873040448,-460.0,0.00016777,2]
[373132679,1752873040458,-285.15736048,0.00016777,2]
[373132680,1752873040467,-460.0,0.00016778,2]
[373132682,1752873040479,-460.0,0.00016778,2]
[373132683,1752873040490,-460.0,0.00016778,2]
[373132684,1752873040499,-460.0,0.00016778,2]
[373132685,1752873040510,-460.0,0.00016778,2]
[373132686,1752873040521,-460.0,0.00016778,2]
[373132687,1752873040530,-460.0,0.00016778,2]
[373132688,1752873040541,-460.0,0.00016778,2]
[373132689,1752873040550,-460.0,0.00016778,2]
[373132690,1752873040562,-460.0,0.00016778,2]
[373132691,1752873040572,-460.0,0.00016778,2]
[373132692,1752873040581,-460.0,0.00016778,2]
[373132693,1752873040590,-477.44354077,0.00016778,2]
[373132694,1752873040600,-460.0,0.00016778,2]
[373132695,1752873040610,-586.43,0.00016778,2]
[373132696,1752873040620,-460.0,0.00016778,2]
[373132697,1752873040629,-460.0,0.00016778,2]
[373132698,1752873040639,-460.0,0.00016778,2]
[373132699,1752873040648,-460.0,0.00016778,2]
[373132700,1752873040660,-460.0,0.00016778,2]
[373132701,1752873040669,-460.0,0.00016778,2]
[373132702,1752873040679,-460.0,0.00016778,2]
[373132703,1752873040689,-460.0,0.00016778,2]
[373132704,1752873040699,-460.0,0.00016778,2]
[373132705,1752873040708,-460.0,0.00016778,2]
[373132706,1752873040718,-460.0,0.00016778,2]
[373132707,1752873040728,-460.0,0.00016778,2]
[373132708,1752873040737,-460.0,0.00016778,2]
[373132709,1752873040747,-460.0,0.00016779,2]
[373132710,1752873040756,-460.0,0.00016779,2]
[373132711,1752873040765,-460.0,0.00016779,2]
[373132712,1752873040775,-460.0,0.00016779,2]
[373132713,1752873040785,-460.0,0.00016779,2]
[373132714,1752873040794,-460.0,0.00016779,2]
[373132715,1752873040803,-460.0,0.00016779,2]
[373132716,1752873040813,-460.0,0.00016779,2]
[373132717,1752873040822,-460.0,0.00016779,2]
[373132718,1752873040831,-460.0,0.00016779,2]
[373132719,1752873040840,-460.0,0.00016779,2]
[373132720,1752873040850,-460.0,0.0001678,2]
[373132721,1752873040859,-460.0,0.0001678,2]
[373132722,1752873040869,-1050.32,0.0001678,2]
[373132723,1752873040879,-460.0,0.00016781,2]
[373132724,1752873040888,-460.0,0.00016781,2]
[373132725,1752873040898,-709.61,0.00016782,2]
[373132726,1752873040909,-460.0,0.00016782,2]
[373132727,1752873040919,-460.0,0.00016782,2]
[373132728,1752873040928,-939.48,0.00016782,2]
[373132730,1752873040937,-965.92,0.00016782,2]
[373132731,1752873040947,-3342.1617565,0.00017046,2]
[373132732,1752873040956,-460.0,0.0001705,2]
[373132733,1752873040966,-460.0,0.0001705,2]
[373132734,1752873040975,-460.0,0.0001705,2]
[373132735,1752873040984,-460.0,0.0001705,2]
[373132736,1752873040993,-518.46,0.0001705,2]
[373132737,1752873041003,-404.92811846,0.00017051,2]
[373132738,1752873041012,-940.04,0.00017051,2]
[373132739,1752873041022,-460.0,0.00017051,2]
[373132740,1752873041031,-460.0,0.00017051,2]
[373132741,1752873041040,-460.0,0.00017051,2]
[373132742,1752873041051,-460.0,0.00017051,2]
[373132743,1752873041061,-460.0,0.00017051,2]
[373132744,1752873041069,-711.59,0.00017051,2]
[373132745,1752873041079,-460.0,0.00017051,2]
[373132746,1752873041089,-460.0,0.00017051,2]
[373132747,1752873041099,-512.73,0.00017051,2]
[373132748,1752873041108,-1966.73,0.00017051,2]
[373132749,1752873041117,-460.0,0.00017051,2]
[373132750,1752873041126,-460.0,0.00017051,2]
[373132751,1752873041136,-460.0,0.00017051,2]
[373132752,1752873041146,-460.0,0.00017051,2]
[373132753,1752873041156,-460.0,0.00017051,2]
[373132754,1752873041166,-460.0,0.00017051,2]
[373132755,1752873041175,-460.0,0.00017052,2]
[373132756,1752873041185,-460.0,0.00017052,2]
[373132757,1752873041194,-460.0,0.00017052,2]
[373132759,1752873041203,-460.0,0.00017052,2]
[373132761,1752873041213,-460.0,0.00017052,2]
[373132763,1752873041223,-460.0,0.00017052,2]
[373132765,1752873041233,-460.0,0.00017052,2]
[373132767,1752873041242,-460.0,0.00017052,2]
[373132769,1752873041251,-460.0,0.00017052,2]
[373132771,1752873041261,-460.0,0.00017052,2]
[373132773,1752873041271,-460.0,0.00017052,2]
[373132775,1752873041282,-586.43,0.00017052,2]
[373132777,1752873041291,-460.0,0.00017052,2]
[373132779,1752873041301,-460.0,0.00017052,2]
[373132781,1752873041310,-460.0,0.00017052,2]
[373132783,1752873041320,-460.0,0.00017052,2]
[373132785,1752873041330,-460.0,0.00017052,2]
[373132787,1752873041339,-460.0,0.00017052,2]
[373132789,1752873041349,-460.0,0.00017052,2]
[373132791,1752873041358,-460.0,0.00017052,2]
[373132793,1752873041367,-460.0,0.00017052,2]
[373132795,1752873041377,-460.0,0.00017052,2]
[373132797,1752873041386,-460.0,0.00017052,2]
[373132799,1752873041396,-460.0,0.00017053,2]
[373132801,1752873041408,-460.0,0.00017053,2]
[373132803,1752873041417,-460.0,0.00017053,2]
[373132805,1752873041427,-460.0,0.00017053,2]
[373132807,1752873041438,-341.0,0.00017053,2]
[373132809,1752873041447,-460.0,0.00017053,2]
[373132811,1752873041457,-460.0,0.00017053,2]
[373132813,1752873041467,-460.0,0.00017053,2]
[373132815,1752873041480,-460.0,0.00017053,2]
[373132817,1752873041489,-460.0,0.00017053,2]
[373132819,1752873041499,-460.0,0.00017054,2]
[373132821,1752873041510,-1050.32,0.00017054,2]
[373132823,1752873041519,-460.0,0.00017055,2]
[373132825,1752873041529,-460.0,0.00017055,2]
[373132827,1752873041538,-709.61,0.00017056,2]
[373132829,1752873041547,-460.0,0.00017056,2]
[373132831,1752873041558,-460.0,0.00017056,2]
[373132833,1752873041568,-939.48,0.00017056,2]
[373132835,1752873041578,-965.92,0.00017056,2]
[373132837,1752873041587,-500.0,0.00017203,2]
[373132839,1752873041596,-500.0,0.00017203,2]
[373132840,1752873041606,-500.0,0.00017203,2]
[373132842,1752873041616,-329.33592927,0.00017203,2]
[373132844,1752873041625,-500.0,0.0001723,2]
[373132846,1752873041634,-466.18851498,0.00017246,2]
[373132848,1752873041644,-501.58885187,0.00017248,2]
[373132850,1752873041654,-500.0,0.00017248,2]
[373132853,1752873041665,-460.0,0.00017324,2]
[373132854,1752873041675,-460.0,0.00017324,2]
[373132856,1752873041684,-185.30992788,0.00017324,2]
[373132858,1752873041693,-518.46,0.00017324,2]
[373132860,1752873041703,-940.04,0.00017325,2]
[373132862,1752873041712,-460.0,0.00017325,2]
[373132864,1752873041722,-460.0,0.00017325,2]
[373132866,1752873041732,-460.0,0.00017325,2]
[373132868,1752873041741,-460.0,0.00017325,2]
[373132870,1752873041750,-460.0,0.00017325,2]
[373132872,1752873041759,-711.59,0.00017325,2]
[373132874,1752873041769,-460.0,0.00017325,2]
[373132876,1752873041779,-460.0,0.00017325,2]
[373132878,1752873041788,-512.73,0.00017325,2]
[373132880,1752873041798,-1966.73,0.00017325,2]
[373132882,1752873041808,-460.0,0.00017325,2]
[373132884,1752873041817,-460.0,0.00017325,2]
[373132886,1752873041826,-460.0,0.00017325,2]
[373132888,1752873041836,-460.0,0.00017325,2]
[373132890,1752873041846,-460.0,0.00017325,2]
[373132892,1752873041854,-460.0,0.00017325,2]
[373132893,1752873041863,-173.93945779,0.00017326,2]
[373132895,1752873041872,-460.0,0.00017326,2]
[373132897,1752873041882,-460.0,0.00017326,2]
[373132899,1752873041892,-460.0,0.00017326,2]
[373132902,1752873041901,-460.0,0.00017326,2]
[373132903,1752873041911,-460.0,0.00017326,2]
[373132905,1752873041921,-460.0,0.00017326,2]
[373132907,1752873041930,-460.0,0.00017326,2]
[373132909,1752873041940,-460.0,0.00017326,2]
[373132911,1752873041950,-460.0,0.00017326,2]
[373132913,1752873041961,-460.0,0.00017326,2]
[373132915,1752873041971,-586.43,0.00017326,2]
[373132917,1752873041982,-460.0,0.00017326,2]
[373132920,1752873041993,-460.0,0.00017326,2]
[373132921,1752873042004,-460.0,0.00017326,2]
[373132923,1752873042015,-294.19594916,0.00017326,2]
[373132925,1752873042028,-460.0,0.00017326,2]
[373132927,1752873042037,-460.0,0.00017326,2]
[373132929,1752873042049,-460.0,0.00017326,2]
[373132931,1752873042059,-460.0,0.00017326,2]
[373132933,1752873042068,-460.0,0.00017326,2]
[373132935,1752873042078,-460.0,0.00017326,2]
[373132937,1752873042087,-460.0,0.00017326,2]
[373132939,1752873042097,-460.0,0.00017327,2]
[373132941,1752873042106,-321.45,0.00017327,2]
[373132943,1752873042115,-460.0,0.00017327,2]
[373132945,1752873042125,-460.0,0.00017327,2]
[373132947,1752873042134,-460.0,0.00017327,2]
[373132949,1752873042143,-460.0,0.00017327,2]
[373132951,1752873042152,-460.0,0.00017327,2]
[373132953,1752873042163,-503.37184168,0.00017327,2]
[373132955,1752873042172,-460.0,0.00017327,2]
[373132957,1752873042182,-1050.32,0.00017328,2]
[373132959,1752873042191,-460.0,0.00017329,2]
[373132961,1752873042202,-460.0,0.00017329,2]
[373132963,1752873042211,-709.61,0.0001733,2]
[373132965,1752873042220,-460.0,0.0001733,2]
[373132967,1752873042230,-460.0,0.0001733,2]
[373132969,1752873042239,-939.48,0.0001733,2]
[373132971,1752873042249,-965.92,0.0001733,2]
[373132973,1752873042258,-207.7516746,0.00017344,2]
[373132974,1752873042267,-500.0,0.00017358,2]
[373132976,1752873042276,-357.0,0.00017411,2]
[373132979,1752873042287,-460.0,0.00017598,2]
[373132981,1752873042296,-460.0,0.00017598,2]
[373132983,1752873042306,-518.46,0.00017598,2]
[373132985,1752873042315,-940.04,0.00017599,2]
[373132986,1752873042324,-460.0,0.00017599,2]
[373132989,1752873042334,-460.0,0.00017599,2]
[373132991,1752873042343,-460.0,0.00017599,2]
[373132992,1752873042353,-460.0,0.00017599,2]
[373132995,1752873042363,-460.0,0.00017599,2]
[373132996,1752873042373,-711.59,0.00017599,2]
[373132998,1752873042384,-460.0,0.00017599,2]
[373133000,1752873042394,-460.0,0.00017599,2]
[373133003,1752873042404,-1966.73,0.00017599,2]
[373133004,1752873042415,-512.73,0.00017599,2]
[373133006,1752873042424,-460.0,0.00017599,2]
[373133008,1752873042433,-460.0,0.00017599,2]
[373133010,1752873042442,-460.0,0.00017599,2]
[373133012,1752873042451,-460.0,0.00017599,2]
[373133014,1752873042460,-364.15,0.00017599,2]
[373133016,1752873042470,-460.0,0.000176,2]
[373133018,1752873042479,-460.0,0.000176,2]
[373133020,1752873042492,-460.0,0.000176,2]
[373133022,1752873042502,-460.0,0.000176,2]
[373133024,1752873042511,-460.0,0.000176,2]
[373133026,1752873042523,-460.0,0.000176,2]
[373133028,1752873042532,-582.88,0.000176,2]
[373133030,1752873042543,-460.0,0.000176,2]
[373133032,1752873042553,-586.43,0.000176,2]
[373133034,1752873042564,-460.0,0.000176,2]
[373133037,1752873042575,-460.0,0.000176,2]
[373133038,1752873042584,-460.0,0.000176,2]
[373133040,1752873042594,-460.0,0.000176,2]
[373133043,1752873042604,-213.53987885,0.000176,2]
[373133044,1752873042616,-460.0,0.000176,2]
[373133047,1752873042625,-460.0,0.000176,2]
[373133048,1752873042635,-542.58,0.000176,2]
[373133051,1752873042645,-460.0,0.000176,2]
[373133052,1752873042654,-460.0,0.000176,2]
[373133054,1752873042665,-460.0,0.00017601,2]
[373133057,1752873042675,-460.0,0.00017601,2]
[373133059,1752873042684,-460.0,0.00017601,2]
[373133062,1752873042694,-460.0,0.00017601,2]
[373133063,1752873042705,-460.0,0.00017601,2]
[373133067,1752873042715,-586.10586926,0.00017601,2]
[373133068,1752873042724,-460.0,0.00017601,2]
[373133071,1752873042734,-1050.32,0.00017602,2]
[373133073,1752873042745,-460.0,0.00017603,2]
[373133075,1752873042755,-460.0,0.00017603,2]
[373133076,1752873042765,-709.61,0.00017604,2]
[373133090,1752873042884,-460.0,0.00017604,2]
[373133092,1752873042893,-460.0,0.00017604,2]
[373133094,1752873042903,-939.48,0.00017604,2]
[373133096,1752873042914,-965.92,0.00017604,2]
[373133098,1752873042924,-387.93336246,0.00017703,2]
[373133100,1752873042933,-1000.0,0.00017751,2]
[373133101,1752873042942,-815.32243225,0.00017751,2]
[373133102,1752873042952,-1614.06648516,0.00017775,2]
[373133103,1752873042961,-186.0,0.00017836,3]
[373133104,1752873042973,-460.0,0.00017872,2]
[373133105,1752873042983,-518.46,0.00017872,2]
[373133106,1752873042993,-940.04,0.00017873,2]
[373133107,1752873043003,-460.0,0.00017873,2]
[373133108,1752873043013,-460.0,0.00017873,2]
[373133110,1752873043022,-460.0,0.00017873,2]
[373133112,1752873043032,-460.0,0.00017873,2]
[373133114,1752873043043,-460.0,0.00017873,2]
[373133115,1752873043055,-711.59,0.00017873,2]
[373133116,1752873043065,-460.0,0.00017873,2]
[373133117,1752873043075,-460.0,0.00017873,2]
[373133119,1752873043085,-1966.73,0.00017873,2]
[373133121,1752873043094,-512.73,0.00017873,2]
[373133123,1752873043103,-398.04,0.00017873,2]
[373133125,1752873043113,-460.0,0.00017873,2]
[373133127,1752873043122,-460.0,0.00017873,2]
[373133128,1752873043132,-460.0,0.00017873,2]
[373133129,1752873043142,-460.0,0.00017874,2]
[373133130,1752873043151,-460.0,0.00017874,2]
[373133131,1752873043163,-460.0,0.00017874,2]
[373133132,1752873043172,-460.0,0.00017874,2]
[373133133,1752873043182,-460.0,0.00017874,2]
[373133134,1752873043191,-164.53979384,0.00017874,2]
[373133135,1752873043201,-460.0,0.00017874,2]
[373133136,1752873043211,-586.43,0.00017874,2]
[373133137,1752873043221,-460.0,0.00017874,2]
[373133138,1752873043230,-460.0,0.00017874,2]
[373133139,1752873043239,-460.0,0.00017874,2]
[373133140,1752873043250,-460.0,0.00017874,2]
[373133141,1752873043259,-460.0,0.00017874,2]
[373133142,1752873043274,-460.0,0.00017874,2]
[373133143,1752873043283,-460.0,0.00017875,2]
[373133144,1752873043294,-460.0,0.00017875,2]
[373133145,1752873043303,-460.0,0.00017875,2]
[373133146,1752873043314,-470.30274321,0.00017875,2]
[373133147,1752873043324,-460.0,0.00017875,2]
[373133148,1752873043334,-460.0,0.00017875,2]
[373133149,1752873043344,-1050.32,0.00017876,2]
[373133150,1752873043354,-460.0,0.00017877,2]
[373133151,1752873043363,-460.0,0.00017877,2]
[373133152,1752873043373,-709.61,0.00017878,2]
[373133153,1752873043383,-460.0,0.00017878,2]
[373133154,1752873043392,-460.0,0.00017878,2]
[373133155,1752873043404,-939.48,0.00017878,2]
[373133156,1752873043416,-965.92,0.00017878,2]
[373133157,1752873043426,-353.96926076,0.00017895,2]
[373133158,1752873043437,-302.55582483,0.000179,2]
[373133159,1752873043446,-500.0,0.00017906,2]
[373133160,1752873043455,-500.0,0.0001795,2]
[373133161,1752873043465,-235.68234174,0.00018019,2]
[373133162,1752873043474,-460.0,0.00018146,2]
[373133163,1752873043488,-518.46,0.00018146,2]
[373133164,1752873043498,-490.23146904,0.00018146,2]
[373133166,1752873043508,-500.0,0.00018146,2]
[373133168,1752873043517,-1640.30532733,0.00018146,2]
[373133170,1752873043528,-1640.30532733,0.00018146,2]
[373133172,1752873043538,-1640.30532733,0.00018146,2]
[373133173,1752873043547,-1640.30532733,0.00018146,2]
[373133174,1752873043559,-1640.30532733,0.00018146,2]
[373133175,1752873043568,-1640.30532733,0.00018146,2]
[373133176,1752873043577,-1640.30532733,0.00018146,2]
[373133177,1752873043587,-1640.30532733,0.00018146,2]
[373133178,1752873043596,-1640.30532733,0.00018146,2]